bitfinex/quotes_BTCUSD_20250808
["timestamp","ask_amount","ask_price","bid_price","bid_amount"]
[1754659999203,0.14373102,116780.0,116770.0,0.69319148]
[1754659999434,0.14377102,116780.0,116770.0,0.28780897]
[1754659999665,0.13576,116780.0,116770.0,0.28780897]
[1754660000559,0.13576,116780.0,116770.0,0.78005359]
[1754660000781,0.13576,116780.0,116770.0,0.28780897]
[1754660003207,0.003,116780.0,116770.0,0.28780897]
[1754660003448,0.13564,116780.0,116770.0,0.28780897]
[1754660003695,0.003,116780.0,116770.0,0.28780897]
[1754660003899,0.13564,116780.0,116770.0,0.28780897]
[1754660005648,0.1356,116780.0,116770.0,0.28780897]
[1754660009004,0.13556,116780.0,116770.0,0.28780897]
[1754660009221,0.13556,116780.0,116770.0,0.78005359]
[1754660009867,0.13556,116780.0,116770.0,0.28780897]
[1754660012491,0.13556,116780.0,116770.0,0.28462897]
[1754660013308,0.003,116780.0,116770.0,0.28462897]
[1754660013544,0.13552,116780.0,116770.0,0.28462897]
[1754660014490,0.3088422,116780.0,116770.0,0.28462897]
[1754660014694,0.3088422,116780.0,116770.0,0.19570686]
[1754660014695,0.3349422,116780.0,116770.0,0.19570686]
[1754660014941,0.4249422,116780.0,116770.0,0.001]
[1754660015140,0.49441982,116780.0,116770.0,0.001]
[1754660015806,0.50244334,116780.0,116770.0,0.001]
[1754660016221,0.43296572,116780.0,116770.0,0.001]
[1754660016432,0.30044572,116780.0,116770.0,0.001]
[1754660016641,0.41000572,116780.0,116770.0,0.19921686]
[1754660016848,0.09824,116780.0,116770.0,0.19921686]
[1754660017059,0.22556,116780.0,116770.0,0.19921686]
[1754660017298,0.22556,116780.0,116770.0,0.20241686]
[1754660017945,0.3968222,116780.0,116770.0,0.19921686]
[1754660018341,0.3988822,116780.0,116770.0,0.19921686]
[1754660018663,0.4020622,116780.0,116770.0,0.19921686]
[1754660018845,0.4249822,116780.0,116770.0,0.17227686]
[1754660019201,0.43300646,116780.0,116770.0,0.001]
[1754660019639,0.45874846,116780.0,116770.0,0.001]
[1754660023885,0.45874846,116780.0,116770.0,0.02597]
[1754660024107,0.45874846,116780.0,116770.0,0.001]
[1754660026594,0.17127686,116770.0,116760.0,0.0004]
[1754660026807,0.20746112,116770.0,116760.0,0.00048109]
[1754660028785,0.29532323,116770.0,116760.0,0.00048109]
[1754660028923,0.29632323,116770.0,116760.0,0.00148109]
[1754660029440,0.63632323,116770.0,116760.0,0.00148109]
[1754660029889,0.66169323,116770.0,116760.0,0.00148109]
[1754660031525,0.65969323,116770.0,116760.0,0.00048109]
[1754660031862,0.66369323,116770.0,116760.0,0.00048109]
[1754660033590,0.90614225,116770.0,116760.0,0.00048109]
[1754660033782,0.93114225,116770.0,116760.0,0.00048109]
[1754660034058,0.93715618,116770.0,116760.0,0.00048109]
[1754660034508,0.9121467,116770.0,116760.0,0.00048109]
[1754660034696,0.9371467,116770.0,116760.0,0.00048109]
[1754660035434,1.01792702,116770.0,116760.0,0.00048109]
[1754660036317,1.01592702,116770.0,116760.0,0.00048109]
[1754660036775,1.01692702,116770.0,116760.0,0.00048109]
[1754660038208,1.01692702,116770.0,116760.0,0.00148109]
[1754660038209,1.01892702,116770.0,116760.0,0.00148109]
[1754660040995,1.15120702,116770.0,116760.0,0.00148109]
[1754660043172,1.1572107,116770.0,116760.0,0.00148109]
[1754660045592,1.1572107,116770.0,116750.0,0.00499]
[1754660045593,0.58874055,116760.0,116750.0,1e-08]
[1754660045823,1.25368537,116760.0,116750.0,1e-08]
[1754660046033,1.27806537,116760.0,116750.0,1e-08]
[1754660046266,0.4213062,116750.0,116740.0,1e-08]
[1754660046513,0.4213062,116750.0,116740.0,8.111e-05]
[1754660046514,1.20225677,116750.0,116740.0,8.111e-05]
[1754660046757,1.22971677,116750.0,116740.0,8.111e-05]
[1754660046984,1.31651102,116750.0,116740.0,8.111e-05]
[1754660047430,1.31649941,116750.0,116740.0,8.111e-05]
[1754660048206,0.4387699,116740.0,116730.0,0.0004]
[1754660048380,0.70132886,116740.0,116730.0,0.0004]
[1754660049590,0.70432886,116740.0,116730.0,0.0004]
[1754660049824,0.85432886,116740.0,116730.0,0.0004]
[1754660050240,0.85432634,116740.0,116730.0,0.0004]
[1754660051412,0.86878123,116740.0,116730.0,0.0004]
[1754660051621,0.89192123,116740.0,116730.0,0.0004]
[1754660052596,0.89292123,116740.0,116730.0,0.0014]
[1754660053260,0.17135023,116720.0,116710.0,0.02358]
[1754660053469,0.3115534,116720.0,116710.0,0.0257612]
[1754660053875,0.3373104,116720.0,116710.0,0.0257612]
[1754660054481,0.34585657,116720.0,116710.0,0.0257612]
[1754660054685,0.34788657,116720.0,116710.0,0.0257612]
[1754660055089,0.37534657,116720.0,116710.0,0.0236612]
[1754660055515,0.71634657,116720.0,116710.0,0.0246612]
[1754660055717,0.68685657,116720.0,116710.0,0.0267612]
[1754660056204,0.69385724,116720.0,116710.0,0.0257612]
[1754660056650,0.69385724,116720.0,116710.0,0.0267612]
[1754660056846,0.69685724,116720.0,116710.0,0.0267612]
[1754660059388,0.69888724,116720.0,116710.0,0.0267612]
[1754660059594,0.70196724,116720.0,116710.0,0.0267612]
[1754660059800,0.72634724,116720.0,116710.0,0.0015212]
[1754660060796,0.17136492,116710.0,116700.0,1.0359535]
[1754660060990,0.31736876,116710.0,116700.0,1.0380535]
[1754660061416,0.31941876,116710.0,116700.0,1.0380535]
[1754660061629,0.32237876,116710.0,116700.0,1.0380535]
[1754660062057,0.31736876,116710.0,116700.0,1.0380535]
[1754660062267,0.31736876,116710.0,116700.0,1.0411735]
[1754660062449,0.31836876,116710.0,116700.0,1.0421735]
[1754660063339,0.31836876,116710.0,116700.0,1.02823108]
[1754660063758,0.31836876,116710.0,116700.0,1.02511108]
[1754660064644,0.31836876,116710.0,116700.0,1.02823108]
[1754660065740,0.34412676,116710.0,116700.0,1.02823108]
[1754660067492,0.34412676,116710.0,116700.0,1.02511108]
[1754660069044,0.34412676,116710.0,116700.0,1.02823108]
[1754660069477,0.34612676,116710.0,116700.0,1.02511108]
[1754660070782,0.35113676,116710.0,116700.0,1.02511108]
[1754660071202,0.34596676,116710.0,116700.0,1.02511108]
[1754660071440,0.34596676,116710.0,116700.0,1.02823108]
[1754660071927,0.21412676,116710.0,116700.0,1.19961068]
[1754660072135,0.32024876,116710.0,116700.0,1.19961068]
[1754660072358,0.32032876,116710.0,116700.0,1.19961068]
[1754660072581,0.32032876,116710.0,116700.0,1.02823108]
[1754660074705,0.32032876,116710.0,116700.0,1.19961068]
[1754660074909,0.32032876,116710.0,116700.0,1.02823108]
[1754660076027,0.31432809,116710.0,116700.0,1.02823108]
[1754660076474,0.31432809,116710.0,116700.0,1.19961068]
[1754660077595,0.40432809,116710.0,116700.0,1.19961068]
[1754660078601,0.40432809,116710.0,116700.0,1.02823108]
[1754660078840,0.40432809,116710.0,116700.0,1.02511108]
[1754660079285,0.40637809,116710.0,116700.0,1.02511108]
[1754660079502,0.40936934,116710.0,116700.0,1.02511108]
[1754660079967,0.40640934,116710.0,116700.0,1.02511108]
[1754660080184,0.40435934,116710.0,116700.0,1.02511108]
[1754660080405,0.40435934,116710.0,116700.0,1.19649068]
[1754660080625,0.40435934,116710.0,116700.0,1.02511108]
[1754660081296,0.40435934,116710.0,116700.0,1.19649068]
[1754660081510,0.23295442,116710.0,116700.0,1.19961068]
[1754660081719,0.40431934,116710.0,116700.0,1.19961068]
[1754660082272,0.23295442,116710.0,116700.0,1.19961068]
[1754660082474,0.10103442,116710.0,116700.0,1.19961068]
[1754660082689,0.23295442,116710.0,116700.0,1.19961068]
[1754660083299,0.10103442,116710.0,116700.0,1.19961068]
[1754660083558,0.23295442,116710.0,116700.0,1.77871741]
[1754660083976,0.10103442,116710.0,116700.0,2.04811741]
[1754660084192,0.22492,116710.0,116700.0,2.04811741]
[1754660084628,0.22292,116710.0,116700.0,2.04811741]
[1754660086107,0.22392,116710.0,116700.0,2.04911741]
[1754660086317,0.22392,116710.0,116700.0,1.55687279]
[1754660086515,0.22292,116710.0,116700.0,2.04811741]
[1754660086948,0.092,116710.0,116700.0,2.04911741]
[1754660087179,0.22392,116710.0,116700.0,2.04911741]
[1754660088910,0.22392,116710.0,116700.0,1.55587279]
[1754660088911,0.22292,116710.0,116700.0,1.55587279]
[1754660089127,0.22392,116710.0,116700.0,1.55787279]
[1754660089757,0.22392,116710.0,116700.0,2.05011741]
[1754660089977,0.22292,116710.0,116700.0,2.04811741]
[1754660090411,0.22392,116710.0,116700.0,2.05211741]
[1754660091514,0.22392,116710.0,116700.0,1.55987279]
[1754660092385,0.22392,116710.0,116700.0,1.55675279]
[1754660092830,0.22392,116710.0,116700.0,1.55997279]
[1754660093060,0.22392,116710.0,116700.0,2.05221741]
[1754660094223,0.22392,116710.0,116700.0,1.55997279]
[1754660094462,0.22392,116710.0,116700.0,1.55675279]
[1754660094692,0.22895,116710.0,116700.0,1.55675279]
[1754660094924,0.40031492,116710.0,116700.0,1.55675279]
[1754660095371,0.26839492,116710.0,116700.0,1.55675279]
[1754660095608,0.22903,116710.0,116700.0,1.55675279]
[1754660096073,0.22903,116710.0,116700.0,1.28735279]
[1754660096527,0.22608,116710.0,116700.0,1.28735279]
[1754660096748,0.224,116710.0,116700.0,1.28735279]
[1754660098169,0.224,116710.0,116700.0,1.29057279]
[1754660098393,0.092,116710.0,116700.0,1.78281741]
[1754660098609,0.22392,116710.0,116700.0,1.78281741]
[1754660100353,0.22392,116710.0,116700.0,2.05221741]
[1754660100577,0.092,116710.0,116700.0,2.25473741]
[1754660100793,0.47238915,116760.0,116750.0,0.1713062]
[1754660101005,0.47238915,116760.0,116750.0,0.1980562]
[1754660101006,0.28850664,116760.0,116750.0,0.1980562]
[1754660101205,0.40745943,116760.0,116750.0,0.1980562]
[1754660101412,0.60449696,116760.0,116750.0,0.1980562]
[1754660101629,0.60952696,116760.0,116750.0,0.1980562]
[1754660101868,0.58378096,116760.0,116750.0,0.1980562]
[1754660102077,0.58878096,116760.0,116750.0,0.1990562]
[1754660102281,0.61161096,116760.0,116750.0,0.1723062]
[1754660102509,0.61161096,116760.0,116750.0,0.001]
[1754660102716,0.1713266,116740.0,116730.0,0.19609142]
[1754660102925,0.13404,116740.0,116730.0,0.28295353]
[1754660103138,0.13699,116740.0,116730.0,0.28494353]
[1754660103360,0.13404,116740.0,116730.0,0.28494353]
[1754660103574,0.30831088,116740.0,116730.0,0.28494353]
[1754660103811,0.13196,116740.0,116730.0,0.28494353]
[1754660104010,0.13296,116740.0,116730.0,0.28794353]
[1754660104219,0.13296,116740.0,116730.0,0.78340815]
[1754660104646,0.13296,116740.0,116730.0,0.29116353]
[1754660105296,0.13396,116740.0,116730.0,0.28994353]
[1754660107021,0.30736088,116740.0,116730.0,0.28994353]
[1754660107241,0.13396,116740.0,116730.0,0.28994353]
[1754660108140,0.002,116740.0,116730.0,0.78218815]
[1754660108348,0.002,116740.0,116730.0,0.78540815]
[1754660108551,0.13396,116740.0,116730.0,0.78540815]
[1754660109392,0.13604,116740.0,116730.0,0.28994353]
[1754660109604,0.13899,116740.0,116730.0,0.28994353]
[1754660109810,0.13604,116740.0,116730.0,0.28994353]
[1754660110030,0.13396,116740.0,116730.0,0.28994353]
[1754660110271,0.13396,116740.0,116730.0,0.78218815]
[1754660110488,0.13396,116740.0,116730.0,0.78540815]
[1754660112872,0.13396,116740.0,116730.0,1.12540815]
[1754660113084,0.002,116740.0,116730.0,1.25752815]
[1754660113959,0.002,116740.0,116730.0,0.76528353]
[1754660114236,0.002,116740.0,116730.0,1.12540815]
[1754660114446,0.13216,116750.0,116740.0,0.17132088]
[1754660114664,0.13216,116750.0,116740.0,0.28493299]
[1754660114876,0.13424,116750.0,116740.0,0.28493299]
[1754660115096,0.13719,116750.0,116740.0,0.28493299]
[1754660115717,0.13216,116750.0,116740.0,0.28493299]
[1754660115867,0.13719,116750.0,116740.0,0.28493299]
[1754660116078,0.16102,116750.0,116740.0,0.28693299]
[1754660116290,0.16102,116750.0,116740.0,0.28494299]
[1754660116734,0.16102,116750.0,116740.0,0.28693299]
[1754660116735,0.001,116750.0,116740.0,0.28693299]
[1754660116947,0.001,116750.0,116740.0,0.78239761]
[1754660117396,0.001,116750.0,116740.0,0.29015299]
[1754660117853,0.001,116750.0,116740.0,0.78239761]
[1754660118492,0.001,116750.0,116740.0,0.72156761]
[1754660118921,0.13568,116750.0,116740.0,0.72156761]
[1754660119822,0.001,116750.0,116740.0,0.72156761]
[1754660120038,0.13572,116750.0,116740.0,0.72156761]
[1754660121095,0.13572,116750.0,116740.0,0.22932299]
[1754660121309,0.13778,116750.0,116740.0,0.22610299]
[1754660121507,0.1646,116750.0,116740.0,0.19935299]
[1754660121725,0.17260197,116750.0,116740.0,0.19935299]
[1754660121956,0.03788197,116750.0,116740.0,0.19935299]
[1754660122164,0.00900197,116750.0,116740.0,0.71761761]
[1754660122365,0.00900197,116750.0,116740.0,0.72061761]
[1754660122775,0.00900197,116750.0,116740.0,0.71761761]
[1754660123199,0.0090029,116750.0,116740.0,0.71761761]
[1754660123407,0.001,116750.0,116740.0,0.72061761]
[1754660123621,0.001,116750.0,116740.0,1.06061761]
[1754660124032,0.001,116750.0,116740.0,1.08635761]
[1754660128213,0.001,116750.0,116740.0,1.22099761]
[1754660128420,0.001,116750.0,116740.0,1.49039761]
[1754660129333,0.00014181,116760.0,116750.0,0.5113062]
[1754660129504,0.00014181,116760.0,116750.0,0.77919733]
[1754660129758,0.00014181,116760.0,116750.0,1.27144195]
[1754660130447,0.00114181,116760.0,116750.0,1.27244195]
[1754660131105,0.00114181,116760.0,116750.0,0.78019733]
[1754660131325,0.00114181,116760.0,116750.0,1.27244195]
[1754660131970,0.00114181,116760.0,116750.0,1.76468657]
[1754660132174,1e-08,116760.0,116750.0,1.76468657]
[1754660132625,1e-08,116760.0,116750.0,0.78019733]
[1754660132835,1e-08,116760.0,116750.0,1.74330161]
[1754660133044,0.23097762,116800.0,116790.0,0.17124753]
[1754660133267,0.24151556,116800.0,116790.0,0.25810964]
[1754660133883,0.21263556,116800.0,116790.0,0.76568178]
[1754660134335,0.21263556,116800.0,116790.0,0.28412964]
[1754660134336,0.21986556,116800.0,116790.0,0.28412964]
[1754660134542,0.21986556,116800.0,116790.0,0.25810964]
[1754660134543,0.24351556,116800.0,116790.0,0.25810964]
[1754660134961,0.414742,116800.0,116790.0,0.25810964]
[1754660135383,0.414742,116800.0,116780.0,0.17124914]
[1754660135609,0.14821151,116800.0,116790.0,0.17124753]
[1754660135821,0.31944438,116800.0,116790.0,0.17124753]
[1754660136234,0.34626438,116800.0,116790.0,0.17124753]
[1754660136896,0.17403151,116800.0,116790.0,0.17124753]
[1754660137105,0.04035151,116800.0,116790.0,0.25810964]
[1754660137316,0.14849151,116800.0,116790.0,0.28412964]
[1754660137534,0.14849151,116800.0,116790.0,0.28712964]
[1754660137535,0.14643151,116800.0,116790.0,0.28712964]
[1754660137743,0.14543151,116800.0,116790.0,0.28712964]
[1754660138054,0.14643151,116800.0,116790.0,0.28412964]
[1754660138464,0.14543151,116800.0,116790.0,0.28412964]
[1754660138870,0.01047151,116800.0,116790.0,0.28412964]
[1754660139132,0.03935151,116800.0,116790.0,0.25810964]
[1754660139371,0.21058438,116800.0,116790.0,0.25810964]
[1754660139599,0.10882913,116800.0,116790.0,0.25810964]
[1754660140068,0.03935151,116800.0,116790.0,0.25910964]
[1754660140293,0.03935151,116800.0,116790.0,0.28314964]
[1754660140510,0.03935151,116800.0,116790.0,0.25910964]
[1754660142101,0.03735151,116800.0,116790.0,0.25910964]
[1754660142546,0.03835151,116800.0,116790.0,0.25910964]
[1754660142765,0.01470151,116800.0,116790.0,0.28314964]
[1754660142978,0.01470151,116800.0,116790.0,0.28512964]
[1754660143111,0.01153151,116800.0,116790.0,0.28512964]
[1754660144150,0.00947151,116800.0,116790.0,0.28812964]
[1754660144597,0.00947151,116800.0,116790.0,0.76968178]
[1754660144823,0.00947151,116800.0,116790.0,0.28812964]
[1754660145479,0.00947151,116800.0,116790.0,0.28512964]
[1754660145716,0.01153151,116800.0,116790.0,0.28512964]
[1754660146160,0.01470151,116800.0,116790.0,0.28512964]
[1754660146605,0.00947151,116800.0,116790.0,0.28512964]
[1754660146835,0.00947151,116800.0,116790.0,1.10968178]
[1754660147284,0.00946743,116800.0,116790.0,0.64557866]
[1754660147520,0.00147365,116800.0,116790.0,1.1271308]
[1754660147711,0.00147365,116800.0,116790.0,1.1261308]
[1754660148849,0.00047365,116800.0,116790.0,1.1261308]
[1754660149319,0.00047365,116800.0,116790.0,1.1281308]
[1754660149577,0.00047365,116800.0,116790.0,1.1271308]
[1754660150023,0.00047365,116800.0,116790.0,1.1291308]
[1754660150376,0.00047365,116800.0,116790.0,1.1281308]
[1754660150579,1e-08,116800.0,116790.0,1.1281308]
[1754660150786,1e-08,116800.0,116790.0,1.1301308]
[1754660152372,1e-08,116800.0,116790.0,0.64857866]
[1754660152597,1e-08,116800.0,116790.0,1.1301308]
[1754660155320,1e-08,116800.0,116790.0,1.3995308]
[1754660156230,1e-08,116800.0,116790.0,1.5608558]
[1754660156451,1e-08,116800.0,116790.0,1.2914558]
[1754660158036,1e-08,116800.0,116790.0,1.77300794]
[1754660158691,1e-08,116800.0,116790.0,1.7953255]
[1754660158906,1e-08,116800.0,116790.0,1.8203255]
[1754660159154,0.16967762,116860.0,116830.0,0.34]
[1754660159155,0.02567,116850.0,116830.0,0.34]
[1754660159381,0.02567,116850.0,116840.0,1.25463695]
[1754660159382,0.00996039,116850.0,116840.0,1.25463695]
[1754660159608,0.00799039,116850.0,116840.0,1.25249728]
[1754660160323,0.03563039,116850.0,116840.0,0.73351636]
[1754660160552,0.03663039,116850.0,116840.0,1.22622728]
[1754660160774,0.01390039,116850.0,116840.0,1.23870189]
[1754660161009,0.01390039,116850.0,116840.0,0.75763636]
[1754660161219,0.03663039,116850.0,116840.0,0.73351636]
[1754660161434,0.03663039,116850.0,116840.0,0.73551636]
[1754660161669,0.01096039,116850.0,116840.0,1.24285189]
[1754660161878,0.00899039,116850.0,116840.0,1.24593189]
[1754660162313,0.00799039,116850.0,116840.0,1.24593189]
[1754660162778,0.10034214,116860.0,116850.0,0.1711596]
[1754660163035,0.10034214,116860.0,116850.0,1.21941673]
[1754660163036,0.10832103,116860.0,116850.0,1.21941673]
[1754660163257,0.11029103,116860.0,116850.0,1.24139724]
[1754660163477,0.11029103,116860.0,116850.0,0.76033171]
[1754660163711,0.11029103,116860.0,116850.0,1.24139724]
[1754660163940,0.10832103,116860.0,116850.0,1.24239724]
[1754660164164,0.02587,116890.0,116880.0,0.17111567]
[1754660164390,0.02784,116890.0,116880.0,0.26011672]
[1754660164620,0.02784,116890.0,116880.0,0.25797778]
[1754660166929,0.00217,116890.0,116880.0,0.90143331]
[1754660167154,0.0002,116890.0,116880.0,0.90143331]
[1754660167435,0.0002,116890.0,116880.0,1.24451331]
[1754660167878,0.0022,116890.0,116880.0,1.28765833]
[1754660168334,0.0022,116890.0,116880.0,0.78606378]
[1754660168335,0.00217,116890.0,116880.0,0.78606378]
[1754660168572,0.00511,116890.0,116880.0,0.78606378]
[1754660168811,0.0012,116890.0,116880.0,0.78606378]
[1754660169048,0.0032,116890.0,116880.0,1.26712931]
[1754660169255,0.0032,116890.0,116880.0,0.78606378]
[1754660169478,0.0012,116890.0,116880.0,1.26712931]
[1754660169972,0.0012,116890.0,116880.0,1.27020931]
[1754660170197,0.0002,116890.0,116880.0,0.78914378]
[1754660170419,1e-08,116890.0,116880.0,1.28865833]
[1754660170888,1e-08,116890.0,116880.0,0.8075928]
[1754660171120,1e-08,116890.0,116880.0,1.28765833]
[1754660171565,1e-08,116890.0,116880.0,1.28965833]
[1754660171794,1e-08,116890.0,116880.0,1.15045833]
[1754660172036,1e-08,116890.0,116880.0,1.28837833]
[1754660172251,1e-08,116890.0,116880.0,1.27192931]
[1754660172932,1e-08,116890.0,116880.0,1.29245833]
[1754660173404,1e-08,116910.0,116900.0,0.52853541]
[1754660173624,1e-08,116920.0,116910.0,0.17107176]
[1754660173851,0.00047358,116920.0,116910.0,0.26222226]
[1754660174067,0.00047358,116920.0,116910.0,0.28728387]
[1754660174284,0.02811358,116920.0,116910.0,0.39709387]
[1754660174560,0.02811358,116920.0,116910.0,0.25793387]
[1754660174782,0.02811358,116920.0,116910.0,0.73717387]
[1754660175290,0.02811358,116920.0,116910.0,0.08686211]
[1754660175291,0.19917071,116920.0,116910.0,0.08686211]
[1754660175519,0.19917071,116920.0,116910.0,0.25893387]
[1754660175767,0.02911358,116920.0,116910.0,0.25893387]
[1754660175992,0.03705664,116920.0,116910.0,0.25893387]
[1754660176723,0.03705664,116920.0,116910.0,0.25793387]
[1754660176950,0.21111377,116920.0,116910.0,0.08686211]
[1754660177891,0.17107966,116910.0,116900.0,0.17108639]
[1754660178110,0.20666272,116910.0,116900.0,0.2579485]
[1754660178349,0.34598272,116910.0,116900.0,0.08686211]
[1754660178787,0.17108639,116900.0,116890.0,0.17965608]
[1754660179019,0.17108639,116900.0,116890.0,0.26651819]
[1754660179020,0.01285306,116900.0,116890.0,0.26651819]
[1754660179242,0.03558306,116900.0,116890.0,0.26651819]
[1754660179468,0.20666945,116900.0,116890.0,0.08686211]
[1754660179928,0.17110103,116890.0,116870.0,0.17968682]
[1754660180156,0.19875567,116880.0,116870.0,0.08686211]
[1754660180376,0.20669873,116880.0,116870.0,0.25799242]
[1754660180593,0.34597873,116880.0,116870.0,0.25799242]
[1754660180807,0.17486306,116880.0,116870.0,0.25799242]
[1754660181516,0.34597873,116880.0,116870.0,0.25799242]
[1754660182638,0.17486306,116880.0,116870.0,0.25799242]
[1754660182901,0.17486306,116880.0,116870.0,0.08686211]
[1754660182902,0.34897873,116880.0,116870.0,0.08686211]
[1754660183352,0.34897873,116880.0,116870.0,0.08786211]
[1754660183583,0.34897873,116880.0,116870.0,0.001]
[1754660183805,0.34897873,116880.0,116860.0,0.17967734]
[1754660184032,0.0259,116870.0,116860.0,0.26653945]
[1754660184242,0.20712337,116870.0,116860.0,0.26653945]
[1754660185740,0.17114495,116860.0,116850.0,0.1711596]
[1754660185961,0.1711596,116850.0,116840.0,0.17966592]
[1754660186176,0.03599306,116850.0,116840.0,0.26667017]
[1754660187206,0.03599306,116850.0,116840.0,0.26767017]
[1754660188245,0.03799306,116850.0,116840.0,0.26767017]
[1754660188452,0.20915266,116850.0,116840.0,0.26767017]
[1754660188652,0.20915266,116850.0,116840.0,0.00114214]
[1754660190101,0.20918637,116850.0,116840.0,0.17231639]
[1754660190330,0.20918637,116850.0,116840.0,0.17131639]
[1754660190803,0.21018637,116850.0,116840.0,0.17131639]
[1754660191248,0.20918637,116850.0,116840.0,0.17131639]
[1754660191465,0.20918377,116850.0,116840.0,0.17131639]
[1754660192609,0.34818377,116850.0,116840.0,0.17131639]
[1754660193055,0.17902417,116850.0,116840.0,0.17131639]
[1754660193263,0.35018377,116850.0,116840.0,0.17131639]
[1754660193481,0.17902417,116850.0,116840.0,0.17131639]
[1754660193751,0.17702417,116850.0,116840.0,0.17131639]
[1754660193998,0.14904417,116850.0,116840.0,0.2841485]
[1754660194276,0.15404417,116850.0,116840.0,0.2841485]
[1754660194506,0.35110377,116850.0,116840.0,0.2581785]
[1754660194741,0.17594417,116850.0,116840.0,0.2581785]
[1754660194968,0.17594417,116850.0,116840.0,0.2841485]
[1754660194969,0.15004417,116850.0,116840.0,0.2841485]
[1754660195200,0.15204417,116850.0,116840.0,0.2841485]
[1754660195672,0.17794417,116850.0,116840.0,0.2820185]
[1754660195904,0.17794417,116850.0,116840.0,0.2581785]
[1754660196358,0.34910377,116850.0,116840.0,0.2581785]
[1754660196820,0.15517417,116850.0,116840.0,0.2820185]
[1754660197509,0.15204417,116850.0,116840.0,0.2841485]
[1754660197765,0.14989417,116850.0,116840.0,0.2841485]
[1754660197993,0.14989417,116850.0,116840.0,0.2871385]
[1754660198475,0.01097417,116850.0,116840.0,0.2871385]
[1754660198710,0.01097417,116850.0,116840.0,0.76820403]
[1754660198935,0.01097417,116850.0,116840.0,1.24720403]
[1754660199411,0.00997417,116850.0,116840.0,1.24720403]
[1754660199632,0.00997417,116850.0,116840.0,1.24820403]
[1754660199863,0.00997417,116850.0,116840.0,0.7671385]
[1754660200073,0.00996139,116850.0,116840.0,0.7671385]
[1754660200539,0.00996139,116850.0,116840.0,1.24820403]
[1754660200792,0.139,116860.0,116840.0,1.24820403]
[1754660200793,0.20869,116880.0,116870.0,0.17113031]
[1754660201017,0.35812282,116880.0,116870.0,0.25799242]
[1754660201246,0.38089281,116880.0,116870.0,0.25799242]
[1754660202512,0.35812281,116880.0,116870.0,0.28183242]
[1754660202751,0.36112281,116880.0,116870.0,0.28496242]
[1754660202972,0.03901281,116880.0,116870.0,0.25899242]
[1754660203204,0.03901796,116880.0,116870.0,0.25899242]
[1754660203425,0.01311796,116880.0,116870.0,0.28496242]
[1754660203658,0.01096796,116880.0,116870.0,0.28496242]
[1754660203892,0.01096796,116880.0,116870.0,1.10901795]
[1754660203893,0.01097204,116880.0,116870.0,1.10901795]
[1754660204651,0.02590001,116920.0,116910.0,0.17107176]
[1754660204860,0.33850714,116920.0,116910.0,0.17107176]
[1754660205090,0.19910714,116920.0,116910.0,0.17107176]
[1754660205359,0.33850714,116920.0,116900.0,0.17108639]
[1754660205576,0.19697176,116910.0,116900.0,0.08686211]
[1754660205874,0.19926377,116910.0,116900.0,0.08686211]
[1754660206348,0.17109571,116900.0,116890.0,0.17110103]
[1754660206598,0.33854571,116900.0,116890.0,0.08686211]
[1754660206813,0.17110103,116890.0,116880.0,0.17108144]
[1754660207102,0.19700103,116890.0,116880.0,0.25794355]
[1754660207312,0.16526,116890.0,116880.0,0.25794355]
[1754660207525,0.13936,116890.0,116880.0,0.28178355]
[1754660208185,0.31046103,116890.0,116880.0,0.25794355]
[1754660208401,0.33636103,116890.0,116880.0,0.25794355]
[1754660208620,0.16526,116890.0,116880.0,0.25794355]
[1754660209040,0.33836103,116890.0,116880.0,0.25794355]
[1754660209866,0.34051103,116890.0,116880.0,0.25794355]
[1754660210106,0.34051103,116890.0,116880.0,0.25894355]
[1754660210348,0.31774103,116890.0,116880.0,0.28491355]
[1754660210582,0.14136,116890.0,116880.0,0.28491355]
[1754660211136,0.31246103,116890.0,116880.0,0.28491355]
[1754660211381,0.34169103,116890.0,116880.0,0.25894355]
[1754660212365,0.31447103,116890.0,116880.0,0.25894355]
[1754660212593,0.34169103,116890.0,116880.0,0.08786211]
[1754660213853,0.34169103,116890.0,116880.0,0.001]
[1754660214301,0.34169103,116890.0,116880.0,0.17211567]
[1754660214750,0.03123,116890.0,116880.0,0.25897778]
[1754660214974,0.00401,116890.0,116880.0,0.28526778]
[1754660215188,0.14112,116890.0,116880.0,0.28526778]
[1754660215863,0.002,116890.0,116880.0,0.28826778]
[1754660216082,0.1412,116890.0,116880.0,0.28826778]
[1754660216313,0.002,116890.0,116880.0,0.28526778]
[1754660216579,0.14313,116890.0,116880.0,0.28526778]
[1754660216794,0.15111419,116890.0,116880.0,0.28526778]
[1754660217248,0.15414419,116890.0,116880.0,0.25897778]
[1754660217472,0.17833419,116890.0,116880.0,0.25897778]
[1754660218081,0.15414419,116890.0,116880.0,0.25897778]
[1754660218721,0.15414419,116890.0,116880.0,0.28313778]
[1754660218938,0.15414419,116890.0,116880.0,0.28526778]
[1754660219351,0.15111419,116890.0,116880.0,0.28526778]
[1754660220233,0.15111419,116890.0,116880.0,0.55466778]
[1754660222032,0.00998419,116890.0,116880.0,0.55466778]
[1754660222470,0.18309522,116890.0,116880.0,0.55466778]
[1754660222694,0.01502419,116890.0,116880.0,0.55466778]
[1754660224011,0.01502419,116890.0,116880.0,0.52837778]
[1754660224247,0.03921419,116890.0,116880.0,0.52837778]
[1754660224692,0.01502419,116890.0,116880.0,0.55253778]
[1754660224929,0.01502419,116890.0,116880.0,0.55466778]
[1754660225148,0.01199419,116890.0,116880.0,0.55466778]
[1754660225365,0.21031522,116890.0,116880.0,0.52837778]
[1754660225600,0.21031522,116890.0,116880.0,0.2704]
[1754660225825,0.21031522,116890.0,116880.0,0.44151567]
[1754660226041,0.20233103,116890.0,116880.0,0.44151567]
[1754660226276,0.21032861,116890.0,116880.0,0.17211567]
[1754660226732,0.21032861,116890.0,116880.0,0.001]
[1754660227393,0.55032861,116890.0,116880.0,0.001]
[1754660228053,0.56777763,116890.0,116880.0,0.001]
[1754660228745,0.54832861,116890.0,116880.0,0.001]
[1754660228968,0.55132861,116890.0,116880.0,0.001]
[1754660229408,0.54832861,116890.0,116880.0,0.001]
[1754660229641,0.55132861,116890.0,116880.0,0.002]
[1754660229858,0.55132861,116890.0,116880.0,0.001]
[1754660230047,0.55232861,116890.0,116880.0,0.001]
[1754660230742,0.56877763,116890.0,116880.0,0.001]
[1754660230964,0.57077763,116890.0,116880.0,0.001]
[1754660231632,0.70949763,116890.0,116880.0,0.001]
[1754660232088,0.69204861,116890.0,116880.0,0.001]
[1754660233633,0.70949763,116890.0,116880.0,0.001]
[1754660236728,0.79635974,116890.0,116880.0,0.001]
[1754660237388,0.17117425,116840.0,116830.0,0.3210689]
[1754660237605,0.31013425,116840.0,116830.0,0.41006101]
[1754660238501,0.31013425,116840.0,116830.0,0.38434101]